fUST/lending_fUST_20240912
["ID","MTS","AMOUNT","RATE_DAILY","PERIOD"]
[337802259,1726125701143,-500.0,0.00016438,2]
[337802260,1726125701166,-500.0,0.00016438,2]
[337802261,1726125701191,-500.0,0.00016438,2]
[337802262,1726125701217,-500.0,0.00016438,2]
[337802263,1726125701242,-500.0,0.00016438,2]
[337802264,1726125701303,-500.0,0.00016438,2]
[337802265,1726125701329,-500.0,0.00016438,2]
[337802266,1726125701354,-500.0,0.00016438,2]
[337802267,1726125701377,-500.0,0.00016438,2]
[337802268,1726125701401,-931.43,0.00016438,2]
[337802269,1726125701424,-500.0,0.00016438,2]
[337802270,1726125701446,-500.0,0.00016438,2]
[337802271,1726125701469,-503.12325942,0.00016438,2]
[337802272,1726125701492,-500.0,0.00016438,2]
[337802273,1726125701514,-500.0,0.00016438,2]
[337802274,1726125701537,-500.0,0.00016438,2]
[337802275,1726125701561,-216.8649276,0.00016438,2]
[337802276,1726125701584,-554.58,0.00016438,2]
[337802277,1726125701605,-500.0,0.00016438,2]
[337802278,1726125701627,-500.0,0.00016438,2]
[337802279,1726125701649,-500.0,0.00016438,2]
[337802280,1726125701672,-500.0,0.00016438,2]
[337802281,1726125701695,-508.62343757,0.00016438,2]
[337802282,1726125701718,-543.0,0.00016438,2]
[337802283,1726125701741,-500.0,0.00016438,2]
[337802284,1726125701764,-500.0,0.00016438,2]
[337802285,1726125701788,-500.0,0.00016438,2]
[337802286,1726125701812,-500.0,0.00016438,2]
[337802287,1726125701836,-1810.67,0.00016438,2]
[337802288,1726125701859,-529.98616866,0.00016438,2]
[337802289,1726125701884,-500.0,0.00016438,2]
[337802290,1726125701907,-1036.25,0.00016438,2]
[337802291,1726125701931,-368.59466397,0.00016438,2]
[337802292,1726125701954,-504.11728715,0.00016438,2]
[337802293,1726125701978,-500.0,0.00016438,2]
[337802294,1726125702000,-500.0,0.00016438,2]
[337802295,1726125702023,-563.28782508,0.00016438,2]
[337802296,1726125702048,-500.0,0.00016438,2]
[337802297,1726125702072,-500.0,0.00016438,2]
[337802298,1726125702095,-500.0,0.00016438,2]
[337802299,1726125702120,-500.0,0.00016438,2]
[337802300,1726125702144,-500.0,0.00016438,2]
[337802301,1726125702169,-250.75,0.00016438,2]
[337802302,1726125702194,-500.0,0.00016438,2]
[337802303,1726125702218,-511.93914735,0.00016438,2]
[337802304,1726125702241,-558.32,0.00016438,2]
[337802305,1726125702264,-700.45,0.00016438,2]
[337802306,1726125702289,-500.0,0.00016438,2]
[337802307,1726125702313,-500.0,0.00016438,2]
[337802308,1726125702336,-500.0,0.00016438,2]
[337802309,1726125702358,-500.0,0.00016438,2]
[337802310,1726125702381,-500.0,0.00016438,2]
[337802311,1726125702403,-500.0,0.00016438,2]
[337802312,1726125702426,-500.0,0.00016438,2]
[337802313,1726125702450,-500.0,0.00016438,2]
[337802314,1726125702473,-500.0,0.00016438,2]
[337802315,1726125702497,-250.75585617,0.00016438,2]
[337802316,1726125702522,-1307.02,0.00016438,2]
[337802317,1726125702546,-500.0,0.00016438,2]
[337802318,1726125702571,-500.0,0.00016438,2]
[337802319,1726125702595,-500.0,0.00016438,2]
[337802320,1726125702619,-500.0,0.00016438,2]
[337802321,1726125702643,-500.0,0.00016438,2]
[337802322,1726125702668,-710.2,0.00016438,2]
[337802323,1726125702690,-224.01365004,0.00016438,2]
[337802324,1726125702714,-500.0,0.00016438,2]
[337802325,1726125702737,-500.0,0.00016438,2]
[337802326,1726125702759,-500.0,0.00016438,2]
[337802327,1726125702781,-500.0,0.00016438,2]
[337802328,1726125702805,-501.45,0.00016438,2]
[337802329,1726125702828,-500.0,0.00016438,2]
[337802330,1726125702851,-500.0,0.00016438,2]
[337802331,1726125702874,-500.0,0.00016438,2]
[337802332,1726125702900,-603.57,0.00016438,2]
[337802333,1726125702924,-500.0,0.00016438,2]
[337802334,1726125702947,-501.42637433,0.00016438,2]
[337802335,1726125702971,-500.0,0.00016438,2]
[337802336,1726125702995,-500.0,0.00016438,2]
[337802337,1726125703020,-500.0,0.00016438,2]
[337802338,1726125703047,-500.0,0.00016438,2]
[337802339,1726125703073,-500.0,0.00016438,2]
[337802340,1726125703099,-500.10938939,0.00016438,2]
[337802341,1726125703124,-500.0,0.00016438,2]
[337802342,1726125703150,-918.59,0.00016438,2]
[337802343,1726125703177,-7101.03,0.00016438,2]
[337802344,1726125703201,-500.0,0.00016438,2]
[337802345,1726125703225,-500.631938,0.00016438,2]
[337802346,1726125703250,-516.83,0.00016438,2]
[337802347,1726125703276,-637.47,0.00016438,2]
[337802348,1726125703299,-500.0,0.00016438,2]
[337802349,1726125703322,-500.0,0.00016438,2]
[337802350,1726125703346,-500.0,0.00016438,2]
[337802351,1726125703369,-500.0,0.00016438,2]
[337802352,1726125703394,-500.0,0.00016438,2]
[337802353,1726125703418,-500.0,0.00016438,2]
[337802354,1726125703440,-453.20535718,0.00016438,2]
[337802355,1726125703465,-685.52,0.00016438,2]
[337802356,1726125703488,-500.0,0.00016438,2]
[337802357,1726125703511,-581.85874173,0.00016438,2]
[337802358,1726125703534,-500.0,0.00016438,2]
[337802359,1726125703557,-500.0,0.00016438,2]
[337802360,1726125703581,-801.37,0.00016438,2]
[337802361,1726125703606,-764.26,0.00016438,2]
[337802362,1726125703631,-500.0,0.00016438,2]
[337802363,1726125703655,-500.0,0.00016438,2]
[337802364,1726125703678,-500.0,0.00016438,2]
[337802365,1726125703702,-588.51,0.00016438,2]
[337802366,1726125703725,-500.0,0.00016438,2]
[337802367,1726125703748,-500.0,0.00016438,2]
[337802368,1726125703771,-500.0,0.00016438,2]
[337802369,1726125703794,-500.0,0.00016438,2]
[337802370,1726125703817,-500.0,0.00016438,2]
[337802371,1726125703840,-505.4183312,0.00016438,2]
[337802372,1726125703862,-500.0,0.00016438,2]
[337802373,1726125703885,-500.0,0.00016438,2]
[337802374,1726125703909,-500.0,0.00016438,2]
[337802375,1726125703932,-500.0,0.00016438,2]
[337802376,1726125703955,-500.2021824,0.00016438,2]
[337802377,1726125703979,-500.0,0.00016438,2]
[337802378,1726125704004,-500.0,0.00016438,2]
[337802379,1726125704028,-500.0,0.00016438,2]
[337802380,1726125704057,-5607.12,0.00016438,2]
[337802381,1726125704083,-500.0,0.00016438,2]
[337802382,1726125704109,-629.70599454,0.00016438,2]
[337802383,1726125725855,150.6179354,0.000185,3]
[337802384,1726125861490,3000.0,0.00015419,2]
[337802389,1726125977034,225.8609559,0.00015637,2]
[337802391,1726126040744,600.54702456,0.00016003,2]
[337802392,1726126047125,-172.53013604,0.00016314,2]
[337802393,1726126057500,395.2170012,0.00015404,2]
[337802395,1726126122306,10537.86533194,0.00014,2]
[337802396,1726126124455,129.20506848,0.000129,2]
[337802397,1726126124480,675.67352366,0.000129,2]
[337802399,1726126128582,250.0,0.00015755,2]
[337802400,1726126128795,250.0,0.00015798,2]
[337802401,1726126129025,250.0,0.00015841,2]
[337802402,1726126129433,250.0,0.00015884,2]
[337802403,1726126129667,250.0,0.00015927,2]
[337802404,1726126129881,250.0,0.00015971,2]
[337802405,1726126145149,-250.0,0.00016014,2]
[337802406,1726126146202,149.58543977,0.00015277,2]
[337802407,1726126146229,180.77677723,0.00015277,2]
[337802408,1726126152131,-250.0,0.00016057,2]
[337802409,1726126152157,-250.0,0.000161,2]
[337802410,1726126152186,-250.0,0.00016143,2]
[337802411,1726126152212,-250.0,0.00016187,2]
[337802412,1726126152236,-250.0,0.0001623,2]
[337802413,1726126152262,-250.0,0.00016273,2]
[337802414,1726126152286,-250.0,0.00016316,2]
[337802415,1726126152309,-204.83951662,0.00016323,2]
[337802416,1726126152330,-1852.60944381,0.00016328,2]
[337802417,1726126152353,-250.0,0.00016359,2]
[337802418,1726126152376,-300.0,0.00016394,2]
[337802419,1726126152397,-300.0,0.00016394,2]
[337802420,1726126152420,-4885.14460294,0.00016395,2]
[337802421,1726126165349,187.11670768,0.00015409,2]
[337802422,1726126165373,255.64010714,0.00015409,2]
[337802423,1726126165396,196.0,0.00015409,2]
[337802424,1726126165421,24261.24318518,0.00015409,2]
[337802425,1726126172125,-292.64405392,0.00016395,2]
[337802440,1726126234672,-300.0,0.00016304,2]
[337802441,1726126234683,-199.95196391,0.00016304,2]
[337802442,1726126234697,-100.04803609,0.00016304,2]
[337802443,1726126234708,-586.19331298,0.00016305,2]
[337802474,1726126238522,-6166.03971467,0.00016305,2]
[337802476,1726126238533,-208.15550143,0.00016305,2]
[337802479,1726126238547,-12802.86027977,0.00016395,2]
[337802486,1726126239973,-12983.82320397,0.00016395,2]
[337802487,1726126239983,-150.112233,0.000164,2]
[337802488,1726126239993,-150.112233,0.000164,2]
[337802489,1726126240003,-150.112233,0.000164,2]
[337802490,1726126240013,-150.112233,0.000164,2]
[337802491,1726126240023,-150.112233,0.000164,2]
[337802492,1726126240032,-150.112233,0.000164,2]
[337802493,1726126240042,-150.112233,0.000164,2]
[337802494,1726126240052,-150.112233,0.000164,2]
[337802495,1726126240061,-150.112233,0.000164,2]
[337802496,1726126240070,-150.112233,0.000164,2]
[337802497,1726126240080,-150.112233,0.000164,2]
[337802498,1726126240089,-150.112233,0.000164,2]
[337802500,1726126240099,-150.112233,0.000164,2]
[337802502,1726126240108,-150.112233,0.000164,2]
[337802503,1726126240120,-150.112233,0.000164,2]
[337802504,1726126240129,-150.112233,0.000164,2]
[337802505,1726126240139,-150.112233,0.000164,2]
[337802506,1726126240149,-150.112233,0.000164,2]
[337802507,1726126240158,-150.112233,0.000164,2]
[337802508,1726126240168,-150.112233,0.000164,2]
[337802509,1726126240178,-250.0,0.00016403,2]
[337802510,1726126240187,-251.17838376,0.00016404,2]
[337802511,1726126240200,-500.0,0.00016404,2]
[337802512,1726126240211,-500.0,0.00016404,2]
[337802513,1726126240221,-389.49326573,0.00016404,2]
[337802514,1726126240231,-500.0,0.00016404,2]
[337802515,1726126240240,-188.13778881,0.00016404,2]
[337802516,1726126240250,-500.0,0.00016404,2]
[337802517,1726126240259,-500.0,0.00016404,2]
[337802518,1726126240268,-500.0,0.00016404,2]
[337802519,1726126240281,-500.0,0.00016404,2]
[337802520,1726126240291,-500.0,0.00016404,2]
[337802521,1726126240300,-500.0,0.00016404,2]
[337802522,1726126240310,-500.0,0.00016404,2]
[337802523,1726126240320,-500.0,0.00016404,2]
[337802524,1726126240329,-500.0,0.00016404,2]
[337802525,1726126240339,-500.0,0.00016404,2]
[337802526,1726126240348,-500.0,0.00016404,2]
[337802527,1726126240357,-500.0,0.00016404,2]
[337802528,1726126240367,-500.0,0.00016404,2]
[337802529,1726126240377,-500.0,0.00016404,2]
[337802530,1726126240387,-500.0,0.00016404,2]
[337802531,1726126240396,-500.0,0.00016404,2]
[337802532,1726126240406,-159.80759376,0.00016404,2]
[337802533,1726126240415,-363.50450585,0.00016404,2]
[337802534,1726126240425,-291.1356209,0.00016404,2]
[337802535,1726126240435,-112237.677139,0.00016405,2]
[337802536,1726126240446,-92893.4164218,0.00016405,2]
[337802537,1726126240456,-140297.096424,0.00016415,2]
[337802538,1726126240466,-154822.360703,0.00016415,2]
[337802539,1726126240475,-479271.10946703,0.00016425,2]
[337802540,1726126240484,-500.0,0.00016438,2]
[337802541,1726126240494,-500.0,0.00016438,2]
[337802542,1726126240503,-500.0,0.00016438,2]
[337802544,1726126240513,-500.0,0.00016438,2]
[337802545,1726126240522,-546.95,0.00016438,2]
[337802546,1726126240531,-500.0,0.00016438,2]
[337802547,1726126240540,-500.0,0.00016438,2]
[337802548,1726126240549,-500.0,0.00016438,2]
[337802549,1726126240559,-500.0,0.00016438,2]
[337802550,1726126240569,-500.0,0.00016438,2]
[337802551,1726126240578,-500.0,0.00016438,2]
[337802552,1726126240588,-500.0,0.00016438,2]
[337802553,1726126240597,-500.0,0.00016438,2]
[337802554,1726126240607,-500.0,0.00016438,2]
[337802555,1726126240617,-500.0,0.00016438,2]
[337802556,1726126240626,-500.0,0.00016438,2]
[337802557,1726126240636,-500.0,0.00016438,2]
[337802558,1726126240646,-500.0,0.00016438,2]
[337802559,1726126240655,-500.0,0.00016438,2]
[337802560,1726126240665,-500.0,0.00016438,2]
[337802561,1726126240675,-500.0,0.00016438,2]
[337802562,1726126240685,-500.0,0.00016438,2]
[337802563,1726126240695,-500.0,0.00016438,2]
[337802564,1726126240705,-500.0,0.00016438,2]
[337802565,1726126240714,-209.9704743,0.00016438,2]
[337802566,1726126240723,-500.0,0.00016438,2]
[337802567,1726126240734,-500.0,0.00016438,2]
[337802568,1726126240743,-500.0,0.00016438,2]
[337802569,1726126240752,-500.0,0.00016438,2]
[337802570,1726126240761,-500.0,0.00016438,2]
[337802571,1726126240770,-500.0,0.00016438,2]
[337802572,1726126240779,-690.13,0.00016438,2]
[337802573,1726126240789,-500.0,0.00016438,2]
[337802574,1726126240798,-500.0,0.00016438,2]
[337802575,1726126240808,-500.0,0.00016438,2]
[337802576,1726126240817,-500.0,0.00016438,2]
[337802577,1726126240827,-500.0,0.00016438,2]
[337802578,1726126240836,-500.0,0.00016438,2]
[337802579,1726126240845,-500.0,0.00016438,2]
[337802580,1726126240856,-500.0,0.00016438,2]
[337802581,1726126240865,-500.0,0.00016438,2]
[337802582,1726126240875,-500.0,0.00016438,2]
[337802583,1726126241061,-500.0,0.00016438,2]
[337802584,1726126241071,-502.18643487,0.00016438,2]
[337802585,1726126241081,-500.0,0.00016438,2]
[337802586,1726126241091,-500.0,0.00016438,2]
[337802587,1726126241101,-500.0,0.00016438,2]
[337802588,1726126241111,-500.0,0.00016438,2]
[337802589,1726126241120,-500.0,0.00016438,2]
[337802590,1726126241129,-500.0,0.00016438,2]
[337802591,1726126241139,-500.0,0.00016438,2]
[337802592,1726126241148,-500.0,0.00016438,2]
[337802593,1726126241157,-506.18341326,0.00016438,2]
[337802594,1726126241167,-500.0,0.00016438,2]
[337802595,1726126241176,-500.0,0.00016438,2]
[337802596,1726126241185,-500.0,0.00016438,2]
[337802597,1726126241196,-500.0,0.00016438,2]
[337802598,1726126241206,-500.0,0.00016438,2]
[337802599,1726126241217,-500.0,0.00016438,2]
[337802600,1726126241226,-500.0,0.00016438,2]
[337802601,1726126241237,-500.0,0.00016438,2]
[337802602,1726126241247,-500.0,0.00016438,2]
[337802603,1726126241257,-614.0431943,0.00016438,2]
[337802604,1726126241266,-500.0,0.00016438,2]
[337802605,1726126241276,-500.0,0.00016438,2]
[337802606,1726126241286,-412.73206216,0.00016438,2]
[337802607,1726126241298,-500.0,0.00016438,2]
[337802608,1726126241308,-500.0,0.00016438,2]
[337802609,1726126241317,-500.0,0.00016438,2]
[337802610,1726126241327,-657.97,0.00016438,2]
[337802611,1726126241337,-200.0,0.00016438,2]
[337802612,1726126241346,-558.35165465,0.00016438,2]
[337802613,1726126241356,-500.0,0.00016438,2]
[337802614,1726126241366,-500.0,0.00016438,2]
[337802615,1726126241376,-1049.7,0.00016438,2]
[337802616,1726126241386,-500.0,0.00016438,2]
[337802617,1726126241396,-500.0,0.00016438,2]
[337802618,1726126241406,-500.0,0.00016438,2]
[337802619,1726126241416,-151.05,0.00016438,2]
[337802620,1726126241426,-500.0,0.00016438,2]
[337802621,1726126241435,-500.0,0.00016438,2]
[337802622,1726126241445,-500.0,0.00016438,2]
[337802623,1726126241454,-500.0,0.00016438,2]
[337802624,1726126241464,-500.0,0.00016438,2]
[337802625,1726126241473,-500.0,0.00016438,2]
[337802626,1726126241483,-500.0,0.00016438,2]
[337802627,1726126241493,-500.0,0.00016438,2]
[337802628,1726126241502,-500.0,0.00016438,2]
[337802629,1726126241512,-518.71,0.00016438,2]
[337802630,1726126241522,-500.0,0.00016438,2]
[337802631,1726126241531,-500.0,0.00016438,2]
[337802632,1726126241542,-623.44,0.00016438,2]
[337802633,1726126241551,-200.15702995,0.00016438,2]
[337802634,1726126241560,-500.0,0.00016438,2]
[337802635,1726126241571,-500.0,0.00016438,2]
[337802636,1726126241580,-500.0,0.00016438,2]
[337802637,1726126241590,-519.7166908,0.00016438,2]
[337802638,1726126241600,-500.0,0.00016438,2]
[337802639,1726126241609,-500.0,0.00016438,2]
[337802640,1726126241618,-500.0,0.00016438,2]
[337802641,1726126241627,-832.23,0.00016438,2]
[337802642,1726126241637,-500.0,0.00016438,2]
[337802643,1726126241646,-500.0,0.00016438,2]
[337802644,1726126241655,-500.0,0.00016438,2]
[337802645,1726126241664,-997.48,0.00016438,2]
[337802646,1726126241674,-500.0,0.00016438,2]
[337802647,1726126241683,-500.0,0.00016438,2]
[337802648,1726126241692,-502.92608811,0.00016438,2]
[337802649,1726126241702,-502.89794191,0.00016438,2]
[337802650,1726126241711,-747.14,0.00016438,2]
[337802651,1726126241720,-500.0,0.00016438,2]
[337802652,1726126241730,-500.0,0.00016438,2]
[337802653,1726126241739,-500.0,0.00016438,2]
[337802654,1726126241749,-500.0,0.00016438,2]
[337802655,1726126241758,-500.0,0.00016438,2]
[337802656,1726126241769,-166.19063221,0.00016438,2]
[337802657,1726126241779,-500.0,0.00016438,2]
[337802658,1726126241788,-500.0,0.00016438,2]
[337802659,1726126241798,-500.0,0.00016438,2]
[337802660,1726126241807,-500.0,0.00016438,2]
[337802661,1726126241817,-519.46525074,0.00016438,2]
[337802662,1726126241826,-566.5931538,0.00016438,2]
[337802663,1726126241836,-500.0,0.00016438,2]
[337802664,1726126241845,-500.0,0.00016438,2]
[337802665,1726126241855,-500.0,0.00016438,2]
[337802666,1726126241865,-500.0,0.00016438,2]
[337802667,1726126241874,-500.0,0.00016438,2]
[337802668,1726126241883,-500.0,0.00016438,2]
[337802669,1726126241893,-500.0,0.00016438,2]
[337802670,1726126241903,-208.51020345,0.00016438,2]
[337802671,1726126241912,-501.99696095,0.00016438,2]
[337802672,1726126241922,-500.0,0.00016438,2]
[337802673,1726126241932,-500.0,0.00016438,2]
[337802674,1726126241942,-500.0,0.00016438,2]
[337802675,1726126241952,-500.0,0.00016438,2]
[337802676,1726126241961,-500.0,0.00016438,2]
[337802677,1726126241971,-500.0,0.00016438,2]
[337802678,1726126241980,-500.0,0.00016438,2]
[337802679,1726126241990,-500.0,0.00016438,2]
[337802680,1726126242001,-500.0,0.00016438,2]
[337802681,1726126242012,-500.0,0.00016438,2]
[337802682,1726126242023,-500.0,0.00016438,2]
[337802683,1726126242032,-729.56,0.00016438,2]
[337802684,1726126242044,-500.0,0.00016438,2]
[337802685,1726126242053,-500.0,0.00016438,2]
[337802686,1726126242062,-500.0,0.00016438,2]
[337802687,1726126242072,-500.0,0.00016438,2]
[337802688,1726126242082,-500.0,0.00016438,2]
[337802689,1726126242092,-500.0,0.00016438,2]
[337802690,1726126242102,-500.0,0.00016438,2]
[337802691,1726126242111,-500.0,0.00016438,2]
[337802692,1726126242122,-500.0,0.00016438,2]
[337802693,1726126242132,-500.0,0.00016438,2]
[337802694,1726126242143,-500.0,0.00016438,2]
[337802695,1726126242155,-500.0,0.00016438,2]
[337802696,1726126242166,-500.0,0.00016438,2]
[337802697,1726126242175,-500.0,0.00016438,2]
[337802698,1726126242185,-500.0,0.00016438,2]
[337802699,1726126242196,-500.0,0.00016438,2]
[337802700,1726126242206,-500.0,0.00016438,2]
[337802701,1726126242217,-500.0,0.00016438,2]
[337802702,1726126242227,-500.0,0.00016438,2]
[337802703,1726126242238,-500.0,0.00016438,2]
[337802704,1726126242248,-500.0,0.00016438,2]
[337802705,1726126242258,-589.01,0.00016438,2]
[337802706,1726126242268,-500.0,0.00016438,2]
[337802707,1726126242278,-500.0,0.00016438,2]
[337802708,1726126242288,-500.0,0.00016438,2]
[337802709,1726126242299,-500.0,0.00016438,2]
[337802710,1726126242309,-500.0,0.00016438,2]
[337802711,1726126242318,-500.0,0.00016438,2]
[337802712,1726126242328,-500.0,0.00016438,2]
[337802713,1726126242338,-1516.84,0.00016438,2]
[337802714,1726126242348,-500.0,0.00016438,2]
[337802715,1726126242358,-500.0,0.00016438,2]
[337802716,1726126242368,-500.0,0.00016438,2]
[337802717,1726126242378,-500.0,0.00016438,2]
[337802718,1726126242387,-500.0,0.00016438,2]
[337802719,1726126242397,-500.0,0.00016438,2]
[337802720,1726126242406,-506.41,0.00016438,2]
[337802721,1726126242416,-500.0,0.00016438,2]
[337802722,1726126242425,-500.0,0.00016438,2]
[337802723,1726126242435,-175.91125395,0.00016438,2]
[337802724,1726126242444,-500.0,0.00016438,2]
[337802725,1726126242454,-500.0,0.00016438,2]
[337802726,1726126242463,-500.0,0.00016438,2]
[337802727,1726126242473,-500.0,0.00016438,2]
[337802728,1726126242482,-514.03,0.00016438,2]
[337802729,1726126242492,-500.0,0.00016438,2]
[337802730,1726126242502,-500.0,0.00016438,2]
[337802731,1726126242512,-391.54057447,0.00016438,2]
[337802732,1726126242521,-500.0,0.00016438,2]
[337802733,1726126242530,-636.18553475,0.00016438,2]
[337802734,1726126242540,-500.0,0.00016438,2]
[337802735,1726126242560,-667.46,0.00016438,2]
[337802736,1726126242570,-500.0,0.00016438,2]
[337802737,1726126242579,-500.0,0.00016438,2]
[337802738,1726126242590,-500.0,0.00016438,2]
[337802739,1726126242599,-500.0,0.00016438,2]
[337802740,1726126242609,-500.0,0.00016438,2]
[337802741,1726126242619,-500.0,0.00016438,2]
[337802742,1726126242628,-504.27993807,0.00016438,2]
[337802743,1726126242637,-500.0,0.00016438,2]
[337802744,1726126242647,-500.0,0.00016438,2]
[337802745,1726126242657,-500.0,0.00016438,2]
[337802746,1726126242667,-500.0,0.00016438,2]
[337802747,1726126242676,-249.05061794,0.00016438,2]
[337802748,1726126242686,-500.0,0.00016438,2]
[337802749,1726126242695,-500.0,0.00016438,2]
[337802750,1726126242705,-500.0,0.00016438,2]
[337802751,1726126242714,-500.0,0.00016438,2]
[337802752,1726126242724,-502.54232331,0.00016438,2]
[337802753,1726126242733,-500.0,0.00016438,2]
[337802754,1726126242743,-500.0,0.00016438,2]
[337802755,1726126242753,-500.0,0.00016438,2]
[337802756,1726126242762,-500.0,0.00016438,2]
[337802757,1726126242772,-500.0,0.00016438,2]
[337802758,1726126242782,-284.90326521,0.00016438,2]
[337802759,1726126242792,-500.0,0.00016438,2]
[337802760,1726126242801,-500.0,0.00016438,2]
[337802761,1726126242811,-500.0,0.00016438,2]
[337802762,1726126242821,-500.0,0.00016438,2]
[337802763,1726126242831,-500.0,0.00016438,2]
[337802764,1726126242840,-518.56782583,0.00016438,2]
[337802765,1726126242850,-500.0,0.00016438,2]
[337802766,1726126242859,-500.0,0.00016438,2]
[337802767,1726126242869,-502.86048436,0.00016438,2]
[337802768,1726126242878,-500.0,0.00016438,2]
[337802769,1726126242888,-500.0,0.00016438,2]
[337802770,1726126242897,-652.1,0.00016438,2]
[337802771,1726126242907,-500.0,0.00016438,2]
[337802772,1726126242917,-500.0,0.00016438,2]
[337802773,1726126242927,-500.0,0.00016438,2]
[337802774,1726126242936,-500.0,0.00016438,2]
[337802775,1726126242945,-500.0,0.00016438,2]
[337802776,1726126242955,-500.0,0.00016438,2]
[337802777,1726126242964,-500.0,0.00016438,2]
[337802778,1726126242973,-503.18012607,0.00016438,2]
[337802779,1726126242983,-500.0,0.00016438,2]
[337802780,1726126242992,-7723.66,0.00016438,2]
[337802781,1726126243002,-500.0,0.00016438,2]
[337802782,1726126243011,-503.87101741,0.00016438,2]
[337802783,1726126243021,-500.0,0.00016438,2]
[337802784,1726126243031,-500.0,0.00016438,2]
[337802785,1726126243043,-521.98,0.00016438,2]
[337802786,1726126243055,-500.0,0.00016438,2]
[337802787,1726126243065,-500.0,0.00016438,2]
[337802788,1726126243074,-500.0,0.00016438,2]
[337802789,1726126243084,-500.0,0.00016438,2]
[337802790,1726126243093,-500.0,0.00016438,2]
[337802791,1726126243103,-500.0,0.00016438,2]
[337802792,1726126243113,-500.0,0.00016438,2]
[337802793,1726126243124,-500.0,0.00016438,2]
[337802794,1726126243134,-500.0,0.00016438,2]
[337802795,1726126243143,-787.76,0.00016438,2]
[337802796,1726126243153,-500.0,0.00016438,2]
[337802797,1726126243162,-500.0,0.00016438,2]
[337802798,1726126243172,-500.0,0.00016438,2]
[337802799,1726126243181,-500.0,0.00016438,2]
[337802800,1726126243191,-500.0,0.00016438,2]
[337802801,1726126243200,-500.0,0.00016438,2]
[337802802,1726126243212,-500.0,0.00016438,2]
[337802803,1726126243221,-500.0,0.00016438,2]
[337802804,1726126243230,-568.42264082,0.00016438,2]
[337802805,1726126243241,-500.0,0.00016438,2]
[337802806,1726126243250,-500.0,0.00016438,2]
[337802807,1726126243260,-500.0,0.00016438,2]
[337802808,1726126243270,-500.0,0.00016438,2]
[337802809,1726126243280,-1100.14,0.00016438,2]
[337802810,1726126243290,-500.0,0.00016438,2]
[337802811,1726126243300,-500.0,0.00016438,2]
[337802812,1726126243310,-500.0,0.00016438,2]
[337802813,1726126243320,-605.65,0.00016438,2]
[337802814,1726126243330,-504.6193267,0.00016438,2]
[337802815,1726126243340,-500.0,0.00016438,2]
[337802816,1726126243350,-500.0,0.00016438,2]
[337802817,1726126243359,-549.460912,0.00016438,2]
[337802818,1726126243368,-500.0,0.00016438,2]
[337802819,1726126243378,-500.0,0.00016438,2]
[337802820,1726126243388,-501.70109812,0.00016438,2]
[337802821,1726126243399,-500.0,0.00016438,2]